fUST/lending_fUST_20250723
["ID","MTS","AMOUNT","RATE_DAILY","PERIOD"]
[374137316,1753227047490,-460.0,0.00018441,2]
[374137317,1753227047499,-460.0,0.00018441,2]
[374137318,1753227047508,-460.0,0.00018441,2]
[374137319,1753227047517,-500.0,0.00018442,2]
[374137320,1753227047527,-460.0,0.00018442,2]
[374137321,1753227047536,-151.0,0.00018443,2]
[374137322,1753227047545,-245.0,0.00018443,2]
[374137323,1753227047554,-500.0,0.00018443,2]
[374137324,1753227047563,-500.0,0.00018443,2]
[374137325,1753227047572,-567.78,0.00018443,2]
[374137326,1753227047581,-460.0,0.00018443,2]
[374137327,1753227047590,-704.66,0.00018443,2]
[374137328,1753227047599,-1610.18,0.00018443,2]
[374137329,1753227047608,-953.79,0.00018443,2]
[374137330,1753227047617,-2569.962065,0.00018452,2]
[374137331,1753227047626,-151.0,0.00018452,2]
[374137332,1753227047636,-160.0,0.00018529,2]
[374137333,1753227047645,-215.80012421,0.00018529,2]
[374137334,1753227047654,-839.90542673,0.00018529,2]
[374137335,1753227047663,-160.0,0.0001853,2]
[374137336,1753227047673,-160.0,0.0001853,2]
[374137337,1753227047682,-476.60259688,0.0001853,2]
[374137338,1753227047691,-160.0,0.0001853,2]
[374137339,1753227047700,-12619.94447631,0.0001853,2]
[374137340,1753227047709,-535.79136477,0.00018584,2]
[374137341,1753227047718,-151.0,0.00018585,2]
[374137342,1753227047728,-161.0,0.00018603,3]
[374137343,1753227047737,-974.6229198,0.00018712,2]
[374137344,1753227047746,-500.0,0.00018712,2]
[374137345,1753227047755,-974.6229198,0.00018712,2]
[374137346,1753227047764,-974.6229198,0.00018712,2]
[374137347,1753227047773,-500.0,0.00018712,2]
[374137348,1753227047782,-974.6229198,0.00018712,2]
[374137349,1753227047791,-974.6229198,0.00018712,2]
[374137350,1753227047803,-974.6229198,0.00018712,2]
[374137351,1753227047815,-500.0,0.00018712,2]
[374137352,1753227047824,-974.6229198,0.00018712,2]
[374137353,1753227047833,-974.6229198,0.00018712,2]
[374137354,1753227047842,-182.32653474,0.00018712,2]
[374137355,1753227047851,-500.0,0.00018712,2]
[374137356,1753227047860,-974.6229198,0.00018712,2]
[374137357,1753227047870,-974.6229198,0.00018712,2]
[374137358,1753227047879,-974.6229198,0.00018712,2]
[374137359,1753227047891,-500.0,0.00018712,2]
[374137360,1753227047899,-500.0,0.00018712,2]
[374137361,1753227047909,-974.6229198,0.00018712,2]
[374137362,1753227047918,-974.6229198,0.00018712,2]
[374137363,1753227047927,-974.6229198,0.00018712,2]
[374137364,1753227047936,-1860.33,0.00018713,2]
[374137365,1753227047945,-465.30772743,0.00018713,2]
[374137366,1753227047955,-460.0,0.00018713,2]
[374137367,1753227047963,-460.0,0.00018713,2]
[374137368,1753227047972,-460.0,0.00018713,2]
[374137369,1753227047983,-1494.32,0.00018713,2]
[374137370,1753227047992,-460.0,0.00018713,2]
[374137371,1753227048001,-367.66,0.00018713,2]
[374137372,1753227048010,-460.0,0.00018713,2]
[374137373,1753227048019,-460.0,0.00018713,2]
[374137374,1753227048028,-1152.83,0.00018713,2]
[374137375,1753227048038,-460.0,0.00018713,2]
[374137376,1753227048046,-460.0,0.00018713,2]
[374137377,1753227048151,-556.67,0.00018713,2]
[374137378,1753227048162,-460.0,0.00018713,2]
[374137379,1753227048171,-460.0,0.00018713,2]
[374137380,1753227048181,-460.0,0.00018713,2]
[374137381,1753227048190,-460.0,0.00018713,2]
[374137382,1753227048200,-652.44,0.00018713,2]
[374137383,1753227048209,-460.0,0.00018713,2]
[374137384,1753227048218,-460.0,0.00018713,2]
[374137385,1753227048228,-460.0,0.00018713,2]
[374137386,1753227048237,-460.0,0.00018713,2]
[374137387,1753227048247,-249.92,0.00018715,2]
[374137388,1753227048257,-2022.49,0.00018715,2]
[374137389,1753227048266,-203.63608037,0.00018715,2]
[374137390,1753227048275,-946.41,0.00018715,2]
[374137391,1753227048285,-460.0,0.00018715,2]
[374137392,1753227048295,-460.0,0.00018715,2]
[374137393,1753227048304,-460.0,0.00018715,2]
[374137394,1753227048313,-460.0,0.00018715,2]
[374137395,1753227048323,-460.0,0.00018715,2]
[374137396,1753227048333,-460.0,0.00018715,2]
[374137397,1753227048343,-979.44,0.00018715,2]
[374137398,1753227048352,-460.0,0.00018715,2]
[374137399,1753227048362,-887.93,0.00018715,2]
[374137400,1753227048371,-866.92,0.00018715,2]
[374137401,1753227048381,-460.0,0.00018715,2]
[374137402,1753227048391,-460.0,0.00018715,2]
[374137403,1753227048400,-460.0,0.00018715,2]
[374137404,1753227048409,-460.0,0.00018716,2]
[374137405,1753227048420,-2000.0,0.00018716,2]
[374137406,1753227048429,-2000.0,0.00018716,2]
[374137407,1753227048439,-2000.0,0.00018716,2]
[374137408,1753227048448,-151.0,0.00018717,2]
[374137409,1753227048458,-500.0,0.00018717,2]
[374137410,1753227048467,-500.0,0.00018717,2]
[374137411,1753227048478,-567.78,0.00018717,2]
[374137412,1753227048487,-460.0,0.00018717,2]
[374137413,1753227048497,-704.66,0.00018717,2]
[374137414,1753227048506,-1610.18,0.00018717,2]
[374137415,1753227048517,-953.79,0.00018717,2]
[374137416,1753227048527,-2569.962065,0.00018728,2]
[374137417,1753227048537,-160.0,0.0001874,2]
[374137418,1753227048547,-1220.72215229,0.00018768,2]
[374137419,1753227048556,-1105.88317557,0.000189,2]
[374137420,1753227048566,-500.0,0.00018964,2]
[374137421,1753227048576,-607.1850976,0.00018964,2]
[374137422,1753227048586,-500.0,0.00018964,2]
[374137423,1753227048595,-151.24943892,0.00018964,2]
[374137424,1753227048605,-500.0,0.00018964,2]
[374137425,1753227048614,-500.0,0.00018964,2]
[374137426,1753227048623,-500.0,0.00018964,2]
[374137427,1753227048633,-500.0,0.00018977,2]
[374137428,1753227048643,-410.35864531,0.00018977,2]
[374137429,1753227048652,-1000.0,0.00018977,2]
[374137430,1753227048662,-1860.33,0.00018987,2]
[374137431,1753227048671,-460.0,0.00018987,2]
[374137432,1753227048682,-460.0,0.00018987,2]
[374137433,1753227048691,-559.42,0.00018987,2]
[374137434,1753227048700,-1494.32,0.00018987,2]
[374137435,1753227048710,-460.0,0.00018987,2]
[374137436,1753227048719,-289.95042713,0.00018987,2]
[374137437,1753227048730,-153.97,0.00018987,2]
[374137438,1753227048740,-1152.83,0.00018987,2]
[374137439,1753227048749,-460.0,0.00018987,2]
[374137440,1753227048759,-460.0,0.00018987,2]
[374137441,1753227048768,-460.0,0.00018987,2]
[374137442,1753227048777,-556.67,0.00018987,2]
[374137443,1753227048787,-460.0,0.00018987,2]
[374137444,1753227048797,-460.0,0.00018987,2]
[374137445,1753227048811,-460.0,0.00018987,2]
[374137446,1753227048820,-652.44,0.00018987,2]
[374137447,1753227048830,-460.0,0.00018987,2]
[374137448,1753227048840,-460.0,0.00018987,2]
[374137449,1753227048849,-460.0,0.00018987,2]
[374137450,1753227048858,-460.0,0.00018987,2]
[374137451,1753227048868,-2022.49,0.00018989,2]
[374137452,1753227048878,-946.41,0.00018989,2]
[374137453,1753227048889,-460.0,0.00018989,2]
[374137454,1753227048899,-460.0,0.00018989,2]
[374137455,1753227048909,-460.0,0.00018989,2]
[374137456,1753227048918,-460.0,0.00018989,2]
[374137457,1753227048927,-460.0,0.00018989,2]
[374137458,1753227048936,-431.51,0.00018989,2]
[374137459,1753227048945,-979.44,0.00018989,2]
[374137460,1753227048954,-460.0,0.00018989,2]
[374137461,1753227048964,-887.93,0.00018989,2]
[374137462,1753227048973,-866.92,0.00018989,2]
[374137463,1753227048984,-460.0,0.00018989,2]
[374137464,1753227048994,-460.0,0.00018989,2]
[374137465,1753227049003,-522.18,0.00018989,2]
[374137466,1753227049013,-460.0,0.0001899,2]
[374137467,1753227049022,-151.0,0.00018991,2]
[374137468,1753227049032,-500.0,0.00018991,2]
[374137469,1753227049041,-500.0,0.00018991,2]
[374137470,1753227049051,-567.78,0.00018991,2]
[374137471,1753227049060,-460.0,0.00018991,2]
[374137472,1753227049069,-704.66,0.00018991,2]
[374137473,1753227049078,-1610.18,0.00018991,2]
[374137474,1753227049088,-953.79,0.00018991,2]
[374137475,1753227049097,-223.80317226,0.00019,20]
[374137476,1753227049107,-151.0,0.00019001,2]
[374137477,1753227049116,-151.0,0.00019001,2]
[374137478,1753227049125,-151.0,0.00019001,2]
[374137479,1753227049134,-151.0,0.00019001,2]
[374137480,1753227049143,-151.0,0.00019001,2]
[374137481,1753227049152,-151.0,0.00019001,2]
[374137482,1753227049162,-2569.962065,0.00019003,2]
[374137483,1753227049171,-179.280792,0.00019178,2]
[374137484,1753227049180,-3357.5976194,0.00019178,2]
[374137485,1753227049189,-666.0,0.00019178,2]
[374137486,1753227049199,-3948.89799874,0.00019194,2]
[374137487,1753227049208,-1860.33,0.00019261,2]
[374137488,1753227049217,-460.0,0.00019261,2]
[374137489,1753227049228,-460.0,0.00019261,2]
[374137490,1753227049237,-1494.32,0.00019261,2]
[374137491,1753227049247,-262.21,0.00019261,2]
[374137492,1753227049256,-1152.83,0.00019261,2]
[374137493,1753227049266,-460.0,0.00019261,2]
[374137494,1753227049276,-460.0,0.00019261,2]
[374137495,1753227049285,-556.67,0.00019261,2]
[374137496,1753227049295,-460.0,0.00019261,2]
[374137497,1753227049304,-460.0,0.00019261,2]
[374137498,1753227049315,-460.0,0.00019261,2]
[374137499,1753227049324,-460.0,0.00019261,2]
[374137500,1753227049334,-652.44,0.00019261,2]
[374137501,1753227049343,-460.0,0.00019261,2]
[374137502,1753227049353,-460.0,0.00019261,2]
[374137503,1753227049362,-460.0,0.00019261,2]
[374137504,1753227049371,-460.0,0.00019261,2]
[374137505,1753227049380,-2022.49,0.00019263,2]
[374137506,1753227049390,-946.41,0.00019263,2]
[374137507,1753227049399,-460.0,0.00019263,2]
[374137508,1753227049408,-460.0,0.00019263,2]
[374137509,1753227049418,-460.0,0.00019263,2]
[374137510,1753227049427,-460.0,0.00019263,2]
[374137511,1753227049436,-390.32,0.00019263,2]
[374137512,1753227049445,-979.44,0.00019263,2]
[374137513,1753227049454,-460.0,0.00019263,2]
[374137514,1753227049464,-887.93,0.00019263,2]
[374137515,1753227049473,-866.92,0.00019263,2]
[374137516,1753227049484,-460.0,0.00019263,2]
[374137517,1753227049493,-460.0,0.00019263,2]
[374137518,1753227049502,-380.24,0.00019264,2]
[374137519,1753227049512,-2500.0,0.00019264,2]
[374137520,1753227049522,-1000.0,0.00019264,2]
[374137521,1753227049532,-530.6011952,0.00019264,2]
[374137522,1753227049541,-245.0,0.00019265,2]
[374137523,1753227049550,-500.0,0.00019265,2]
[374137524,1753227049559,-500.0,0.00019265,2]
[374137525,1753227049569,-567.78,0.00019265,2]
[374137526,1753227049578,-460.0,0.00019265,2]
[374137527,1753227049588,-704.66,0.00019265,2]
[374137528,1753227049597,-1610.18,0.00019265,2]
[374137529,1753227049606,-953.79,0.00019265,2]
[374137530,1753227049615,-151.0,0.00019265,2]
[374137531,1753227049624,-151.287131,0.00019265,2]
[374137532,1753227049633,-151.643484,0.00019265,2]
[374137533,1753227049644,-151.0,0.00019265,2]
[374137534,1753227049653,-151.0,0.00019265,2]
[374137535,1753227049663,-230.799096,0.00019265,2]
[374137536,1753227049672,-230.799096,0.00019265,2]
[374137537,1753227049682,-2569.962065,0.00019279,2]
[374137538,1753227049691,-260.0,0.00019288,2]
[374137539,1753227049701,-151.219101,0.00019329,2]
[374137540,1753227049711,-151.0,0.00019329,2]
[374137541,1753227049721,-151.71958,0.00019329,2]
[374137542,1753227049730,-151.0,0.00019329,2]
[374137543,1753227049739,-151.0,0.00019329,2]
[374137544,1753227049749,-151.0,0.00019329,2]
[374137545,1753227049758,-151.0,0.00019329,2]
[374137546,1753227049767,-151.0,0.00019329,2]
[374137547,1753227049776,-151.0,0.00019329,2]
[374137548,1753227049785,-151.0,0.00019329,2]
[374137549,1753227049795,-151.30211,0.00019329,2]
[374137550,1753227049805,-151.0,0.00019329,2]
[374137551,1753227049815,-151.0,0.00019329,2]
[374137552,1753227049824,-151.0,0.00019329,2]
[374137553,1753227049833,-255.225435,0.00019329,2]
[374137554,1753227049843,-151.0,0.00019329,2]
[374137555,1753227049854,-92133.56902378,0.00019329,2]
[374137556,1753227049863,-500.0,0.00019373,2]
[374137557,1753227049873,-500.0,0.00019373,2]
[374137558,1753227049885,-519.15066036,0.00019373,2]
[374137559,1753227049895,-500.0,0.00019373,2]
[374137560,1753227049904,-500.0,0.00019373,2]
[374137561,1753227049914,-500.0,0.00019373,2]
[374137562,1753227049923,-500.0,0.00019373,2]
[374137563,1753227049932,-500.0,0.00019373,2]
[374137564,1753227049941,-280.18916198,0.00019373,2]
[374137565,1753227049950,-274.06147548,0.00019373,2]
[374137566,1753227049960,-500.0,0.00019373,2]
[374137567,1753227049970,-152.68908941,0.00019478,2]
[374137568,1753227049979,-151.0,0.000195,2]
[374137569,1753227049988,-233065.89014712,0.000195,2]
[374137570,1753227049997,-1860.33,0.00019535,2]
[374137571,1753227050007,-227.04,0.00019535,2]
[374137572,1753227050016,-460.0,0.00019535,2]
[374137573,1753227050025,-1494.32,0.00019535,2]
[374137574,1753227050035,-1152.83,0.00019535,2]
[374137575,1753227050043,-460.0,0.00019535,2]
[374137576,1753227050052,-460.0,0.00019535,2]
[374137577,1753227050062,-460.0,0.00019535,2]
[374137578,1753227050071,-556.67,0.00019535,2]
[374137579,1753227050081,-449.05310041,0.00019535,2]
[374137580,1753227050090,-460.0,0.00019535,2]
[374137581,1753227050099,-460.0,0.00019535,2]
[374137582,1753227050108,-652.44,0.00019535,2]
[374137583,1753227050117,-460.0,0.00019535,2]
[374137584,1753227050126,-460.0,0.00019535,2]
[374137585,1753227050135,-460.0,0.00019535,2]
[374137586,1753227050145,-460.0,0.00019535,2]
[374137587,1753227050154,-2022.49,0.00019537,2]
[374137588,1753227050163,-946.41,0.00019537,2]
[374137589,1753227050172,-151.0,0.00019537,2]
[374137590,1753227050182,-151.0,0.00019537,2]
[374137591,1753227050191,-151.0,0.00019537,2]
[374137592,1753227050200,-151.0,0.00019537,2]
[374137593,1753227050210,-151.0,0.00019537,2]
[374137594,1753227050220,-460.0,0.00019537,2]
[374137595,1753227050229,-355.00456655,0.00019537,2]
[374137596,1753227050239,-460.0,0.00019537,2]
[374137597,1753227050248,-460.0,0.00019537,2]
[374137598,1753227050259,-979.44,0.00019537,2]
[374137599,1753227050269,-460.0,0.00019537,2]
[374137600,1753227050280,-887.93,0.00019537,2]
[374137601,1753227050291,-866.92,0.00019537,2]
[374137602,1753227050300,-338.98,0.00019537,2]
[374137603,1753227050310,-413.78,0.00019537,2]
[374137604,1753227050322,-500.0,0.00019539,2]
[374137605,1753227050333,-595.0,0.00019539,2]
[374137606,1753227050342,-567.78,0.00019539,2]
[374137607,1753227050351,-460.0,0.00019539,2]
[374137608,1753227050360,-704.66,0.00019539,2]
[374137609,1753227050369,-1610.18,0.00019539,2]
[374137610,1753227050379,-953.79,0.00019539,2]
[374137611,1753227050388,-2569.962065,0.00019555,2]
[374137612,1753227050397,-1860.33,0.00019809,2]
[374137613,1753227050406,-460.0,0.00019809,2]
[374137614,1753227050416,-1494.32,0.00019809,2]
[374137615,1753227050426,-1152.83,0.00019809,2]
[374137616,1753227050521,-460.0,0.00019809,2]
[374137617,1753227050530,-460.0,0.00019809,2]
[374137618,1753227050540,-176.25087525,0.00019809,2]
[374137619,1753227050549,-556.67,0.00019809,2]
[374137620,1753227050558,-460.0,0.00019809,2]
[374137621,1753227050567,-460.0,0.00019809,2]
[374137622,1753227050577,-652.44,0.00019809,2]
[374137623,1753227050587,-460.0,0.00019809,2]
[374137624,1753227050596,-460.0,0.00019809,2]
[374137625,1753227050605,-460.0,0.00019809,2]
[374137626,1753227050615,-2022.49,0.00019811,2]
[374137627,1753227050624,-946.41,0.00019811,2]
[374137628,1753227050633,-460.0,0.00019811,2]
[374137629,1753227050642,-460.0,0.00019811,2]
[374137630,1753227050652,-460.0,0.00019811,2]
[374137631,1753227050661,-979.44,0.00019811,2]
[374137632,1753227050671,-460.0,0.00019811,2]
[374137633,1753227050681,-887.93,0.00019811,2]
[374137634,1753227050691,-866.92,0.00019811,2]
[374137635,1753227050700,-151.0,0.00019812,2]
[374137636,1753227050710,-151.0,0.00019812,2]
[374137637,1753227050719,-151.0,0.00019812,2]
[374137638,1753227050729,-230.799096,0.00019812,2]
[374137639,1753227050738,-230.799096,0.00019812,2]
[374137640,1753227050747,-1500.0,0.00019812,2]
[374137641,1753227050756,-208.36212605,0.00019813,2]
[374137642,1753227050766,-567.78,0.00019813,2]
[374137643,1753227050775,-460.0,0.00019813,2]
[374137644,1753227050786,-704.66,0.00019813,2]
[374137645,1753227050795,-1610.18,0.00019813,2]
[374137646,1753227050808,-953.79,0.00019813,2]
[374137647,1753227050817,-2569.962065,0.00019831,2]
[374137648,1753227050827,-360.0,0.00019836,2]
[374137649,1753227050837,-362.64259414,0.00019921,2]
[374137650,1753227050847,-6927.78568918,0.0002,2]
[374137651,1753227050858,-2021.0217946,0.0002,2]
[374137652,1753227050867,-14350.5243845,0.0002,2]
[374137653,1753227050878,-3195.40999342,0.0002,2]
[374137654,1753227050890,-362.82157621,0.0002,2]
[374137655,1753227050901,-47340.97896948,0.0002,2]
[374137656,1753227050910,-20261.90329963,0.0002,2]
[374137657,1753227050921,-200.00096275,0.0002,2]
[374137658,1753227050932,-1860.33,0.00020083,2]
[374137659,1753227050941,-460.0,0.00020083,2]
[374137660,1753227050951,-1494.32,0.00020083,2]
[374137661,1753227050960,-1152.83,0.00020083,2]
[374137662,1753227050970,-460.0,0.00020083,2]
[374137663,1753227050979,-460.0,0.00020083,2]
[374137664,1753227050989,-556.67,0.00020083,2]
[374137665,1753227050998,-460.0,0.00020083,2]
[374137666,1753227051007,-460.0,0.00020083,2]
[374137667,1753227051016,-652.44,0.00020083,2]
[374137668,1753227051025,-460.0,0.00020083,2]
[374137669,1753227051034,-460.0,0.00020083,2]
[374137670,1753227051044,-460.0,0.00020083,2]
[374137671,1753227051053,-2022.49,0.00020085,2]
[374137672,1753227051062,-946.41,0.00020085,2]
[374137673,1753227051071,-251.73055202,0.00020085,2]
[374137674,1753227051080,-460.0,0.00020085,2]
[374137675,1753227051089,-589.52,0.00020085,2]
[374137676,1753227051099,-979.44,0.00020085,2]
[374137677,1753227051109,-460.0,0.00020085,2]
[374137678,1753227051118,-887.93,0.00020085,2]
[374137679,1753227051127,-866.92,0.00020085,2]
[374137680,1753227051136,-567.78,0.00020087,2]
[374137681,1753227051145,-460.0,0.00020087,2]
[374137682,1753227051155,-704.66,0.00020087,2]
[374137683,1753227051164,-1610.18,0.00020087,2]
[374137684,1753227051173,-953.79,0.00020087,2]
[374137685,1753227051182,-2569.962065,0.00020107,2]
[374137686,1753227051191,-626.516245,0.00020187,2]
[374137687,1753227051201,-1860.33,0.00020356,2]
[374137688,1753227051210,-460.0,0.00020356,2]
[374137689,1753227051220,-1494.32,0.00020356,2]
[374137690,1753227051230,-1152.83,0.00020356,2]
[374137691,1753227051239,-460.0,0.00020356,2]
[374137692,1753227051248,-460.0,0.00020356,2]
[374137693,1753227051257,-556.67,0.00020356,2]
[374137694,1753227051266,-460.0,0.00020356,2]
[374137695,1753227051275,-460.0,0.00020356,2]
[374137696,1753227051285,-652.44,0.00020356,2]
[374137697,1753227051294,-460.0,0.00020356,2]
[374137698,1753227051303,-220.32684678,0.00020356,2]
[374137699,1753227051312,-179.78,0.00020356,2]
[374137700,1753227051321,-2022.49,0.00020359,2]
[374137701,1753227051331,-946.41,0.00020359,2]
[374137702,1753227051340,-460.0,0.00020359,2]
[374137703,1753227051350,-979.44,0.00020359,2]
[374137704,1753227051359,-460.0,0.00020359,2]
[374137705,1753227051369,-887.93,0.00020359,2]
[374137706,1753227051379,-866.92,0.00020359,2]
[374137707,1753227051389,-567.78,0.00020361,2]
[374137708,1753227051398,-460.0,0.00020361,2]
[374137709,1753227051407,-704.66,0.00020361,2]
[374137710,1753227051418,-1610.18,0.00020361,2]
[374137711,1753227051434,-953.79,0.00020361,2]
[374137712,1753227051445,-2569.962065,0.00020383,3]
[374137713,1753227051455,-460.0,0.00020384,2]
[374137714,1753227051465,-9297.13174675,0.000205,2]
[374137715,1753227051474,-404.912,0.00020616,2]
[374137716,1753227051484,-1860.33,0.0002063,2]
[374137717,1753227051493,-460.0,0.0002063,2]
[374137718,1753227051504,-1494.32,0.0002063,2]
[374137719,1753227051513,-1152.83,0.0002063,2]
[374137720,1753227051522,-460.0,0.0002063,2]
[374137721,1753227051531,-608.65443457,0.0002063,2]
[374137722,1753227051541,-556.67,0.0002063,2]
[374137723,1753227051550,-318.07,0.0002063,2]
[374137724,1753227051559,-460.0,0.0002063,2]
[374137725,1753227051568,-652.44,0.0002063,2]
[374137726,1753227051577,-460.0,0.0002063,2]
[374137727,1753227051587,-2022.49,0.00020633,2]
[374137728,1753227051596,-946.41,0.00020633,2]
[374137729,1753227051605,-460.0,0.00020633,2]
[374137730,1753227051615,-979.44,0.00020633,2]
[374137731,1753227051625,-460.0,0.00020633,2]
[374137732,1753227051635,-887.93,0.00020633,2]
[374137733,1753227051644,-866.92,0.00020633,2]
[374137734,1753227051653,-567.78,0.00020635,2]
[374137735,1753227051663,-460.0,0.00020635,2]
[374137736,1753227051672,-704.66,0.00020635,2]
[374137737,1753227051682,-1610.18,0.00020635,2]
[374137738,1753227051690,-953.79,0.00020635,2]
[374137739,1753227051700,-2569.962065,0.00020659,3]
[374137740,1753227051709,-2000.0,0.00020689,2]
[374137741,1753227051719,-611.22,0.00020704,2]
[374137742,1753227051728,-152.68908941,0.00020869,2]
[374137743,1753227051738,-151.0,0.000209,4]
[374137744,1753227051748,-1860.33,0.00020904,2]
[374137745,1753227051758,-460.0,0.00020904,2]
[374137746,1753227051768,-1494.32,0.00020904,2]
[374137747,1753227051778,-1152.83,0.00020904,2]
[374137748,1753227051787,-460.0,0.00020904,2]
[374137749,1753227051798,-556.67,0.00020904,2]
[374137750,1753227051810,-460.0,0.00020904,2]
[374137751,1753227051819,-652.44,0.00020904,2]
[374137752,1753227051829,-460.0,0.00020904,2]
[374137753,1753227051839,-2022.49,0.00020907,2]
[374137754,1753227051848,-946.41,0.00020907,2]
[374137755,1753227051857,-425.50506118,0.00020907,2]
[374137756,1753227051867,-979.44,0.00020907,2]
[374137757,1753227051878,-460.0,0.00020907,2]
[374137758,1753227051888,-887.93,0.00020907,2]
[374137759,1753227051898,-866.92,0.00020907,2]
[374137760,1753227051907,-567.78,0.00020909,2]
[374137761,1753227051916,-460.0,0.00020909,2]
[374137762,1753227051926,-704.66,0.00020909,2]
[374137763,1753227051935,-1610.18,0.00020909,2]
[374137764,1753227051944,-953.79,0.00020909,2]
[374137765,1753227051953,-151.0,0.00020909,2]
[374137766,1753227051963,-151.0,0.00020909,2]
[374137767,1753227051972,-151.0,0.00020909,2]
[374137768,1753227051983,-480.0,0.00020932,2]
[374137769,1753227051991,-2569.962065,0.00020934,4]
[374137770,1753227052001,-159.806478,0.00020939,2]
[374137771,1753227052011,-151.0,0.00020939,2]
[374137772,1753227052021,-500.0,0.00020973,2]
[374137773,1753227052035,-500.0,0.00020973,2]
[374137774,1753227052044,-500.0,0.00020973,2]
[374137775,1753227052053,-178.749928,0.0002099,2]
[374137776,1753227052063,-14154.5264796,0.00021142,2]
[374137777,1753227052072,-3948.89799874,0.00021143,2]
[374137778,1753227052081,-1860.33,0.00021178,2]
[374137779,1753227052091,-460.0,0.00021178,2]
[374137780,1753227052100,-1494.32,0.00021178,2]
[374137781,1753227052108,-1152.83,0.00021178,2]
[374137782,1753227052117,-460.0,0.00021178,2]
[374137783,1753227052126,-556.67,0.00021178,2]
[374137784,1753227052135,-460.0,0.00021178,2]
[374137785,1753227052144,-652.44,0.00021178,2]
[374137786,1753227052153,-460.0,0.00021178,2]
[374137787,1753227052163,-2022.49,0.00021181,2]
[374137788,1753227052172,-946.41,0.00021181,2]
[374137789,1753227052181,-979.44,0.00021181,2]
[374137790,1753227052190,-460.0,0.00021181,2]
[374137791,1753227052199,-887.93,0.00021181,2]
[374137792,1753227052209,-866.92,0.00021181,2]
[374137793,1753227052218,-567.78,0.00021183,2]
[374137794,1753227052227,-460.0,0.00021183,2]
[374137795,1753227052237,-704.66,0.00021183,2]
[374137796,1753227052247,-1610.18,0.00021183,2]
[374137797,1753227052256,-953.79,0.00021183,2]
[374137798,1753227052266,-151.0,0.00021183,2]
[374137799,1753227052275,-151.0,0.00021183,2]
[374137800,1753227052284,-230.799096,0.00021183,2]
[374137801,1753227052293,-230.799096,0.00021183,2]
[374137802,1753227052303,-2569.962065,0.0002121,4]
[374137803,1753227052312,-500.0,0.00021423,2]
[374137804,1753227052322,-500.54494054,0.00021423,2]
[374137805,1753227052332,-151.0,0.00021429,2]
[374137806,1753227052341,-151.0,0.00021429,2]
[374137807,1753227052351,-151.0,0.00021429,2]
[374137808,1753227052361,-151.0,0.00021429,2]
[374137809,1753227052370,-1860.33,0.00021452,2]
[374137810,1753227052380,-460.0,0.00021452,2]
[374137811,1753227052390,-1494.32,0.00021452,2]
[374137812,1753227052400,-1152.83,0.00021452,2]
[374137813,1753227052409,-460.0,0.00021452,2]
[374137814,1753227052418,-556.67,0.00021452,2]
[374137815,1753227052428,-460.0,0.00021452,2]